[Event "*** Titled Tuesday Blitz"]
[Site "Chess.com"]
[Date "2021.03.30"]
[Round "3"]
[White "chessmadara"]
[Black "londonkid"]
[Result "0-1"]
[WhiteElo "2208"]
[BlackElo "2501"]
[TimeControl "180+1"]
[EndTime "10:27:43 PDT"]
[Termination "londonkid won by resignation"]

1. e4 {[%clk 0:03:00.9]} 1... e6 {[%clk 0:03:00]} 2. d4 {[%clk 0:02:58.7]} 2...
d5 {[%clk 0:02:58.2]} 3. Nc3 {[%clk 0:02:57.8]} 3... Nf6 {[%clk 0:02:58.7]} 4.
Bg5 {[%clk 0:02:54.7]} 4... dxe4 {[%clk 0:02:58.5]} 5. Nxe4 {[%clk 0:02:54.1]}
5... Nbd7 {[%clk 0:02:58.5]} 6. Nf3 {[%clk 0:02:48.7]} 6... Be7 {[%clk
0:02:58.3]} 7. Bxf6 {[%clk 0:02:45]} 7... Nxf6 {[%clk 0:02:56.6]} 8. Bd3 {[%clk
0:02:44.2]} 8... O-O {[%clk 0:02:52.2]} 9. Qd2 {[%clk 0:02:39.2]} 9... b6 {[%clk
0:02:46]} 10. O-O-O {[%clk 0:02:36.6]} 10... Bb7 {[%clk 0:02:45.3]} 11. Nxf6+
{[%clk 0:02:09.4]} 11... Bxf6 {[%clk 0:02:46.2]} 12. Kb1 {[%clk 0:02:06.4]}
12... c5 {[%clk 0:02:39.8]} 13. dxc5 {[%clk 0:02:03.7]} 13... bxc5 {[%clk
0:02:27]} 14. Qf4 {[%clk 0:01:55.6]} 14... Qb6 {[%clk 0:02:24.8]} 15. Ne5 {[%clk
0:01:51.1]} 15... Rad8 {[%clk 0:02:17.8]} 16. Nc4 {[%clk 0:01:45.5]} 16... Qc6
{[%clk 0:02:04.3]} 17. Rhe1 {[%clk 0:01:32.6]} 17... Rd4 {[%clk 0:02:00.7]} 18.
Qe3 {[%clk 0:01:32.3]} 18... Ba6 {[%clk 0:01:47.1]} 19. Ne5 {[%clk 0:01:22.2]}
19... Bxe5 {[%clk 0:01:17.4]} 20. Qxe5 {[%clk 0:01:20.7]} 20... Bxd3 {[%clk
0:01:11.9]} 21. Rxd3 {[%clk 0:01:19.6]} 21... Rxd3 {[%clk 0:01:10.6]} 22. cxd3
{[%clk 0:01:20.5]} 22... Qxg2 {[%clk 0:01:06.1]} 23. Qxc5 {[%clk 0:01:18.7]}
23... Qxh2 {[%clk 0:01:04.1]} 24. Qxa7 {[%clk 0:01:14.6]} 24... h5 {[%clk
0:00:58.1]} 25. Qd4 {[%clk 0:01:06.6]} 25... Rc8 {[%clk 0:00:42.3]} 26. a4
{[%clk 0:00:57.4]} 26... Qc7 {[%clk 0:00:38.9]} 27. Re2 {[%clk 0:00:46]} 27...
Qc1+ {[%clk 0:00:36.2]} 28. Ka2 {[%clk 0:00:45.8]} 28... Qd1 {[%clk 0:00:35.1]}
29. Qe4 {[%clk 0:00:35.7]} 29... Rc1 {[%clk 0:00:27.5]} 30. Qa8+ {[%clk
0:00:26.7]} 30... Kh7 {[%clk 0:00:27.4]} 0-1

[Event "*** Titled Tuesday Blitz"]
[Site "Chess.com"]
[Date "2021.03.30"]
[Round "3"]
[White "OriTaichman"]
[Black "DFeco"]
[Result "1-0"]
[WhiteElo "2543"]
[BlackElo "2320"]
[TimeControl "180+1"]
[EndTime "10:27:45 PDT"]
[Termination "OriTaichman won by resignation"]

1. e4 {[%clk 0:03:00.9]} 1... e5 {[%clk 0:02:59.5]} 2. d4 {[%clk 0:03:01.1]}
2... exd4 {[%clk 0:02:57.6]} 3. Qxd4 {[%clk 0:03:02]} 3... Nc6 {[%clk
0:02:57.6]} 4. Qe3 {[%clk 0:03:02.5]} 4... Nf6 {[%clk 0:02:57]} 5. Nc3 {[%clk
0:03:03]} 5... Be7 {[%clk 0:02:55.9]} 6. Bc4 {[%clk 0:03:01.8]} 6... O-O {[%clk
0:02:55.2]} 7. Bd2 {[%clk 0:03:01]} 7... d6 {[%clk 0:02:52.8]} 8. O-O-O {[%clk
0:03:00.9]} 8... a6 {[%clk 0:02:46.1]} 9. f4 {[%clk 0:03:00.2]} 9... b5 {[%clk
0:02:44.6]} 10. Bb3 {[%clk 0:03:00.3]} 10... Bb7 {[%clk 0:02:25.3]} 11. Nf3
{[%clk 0:02:59.8]} 11... Nd7 {[%clk 0:02:15]} 12. Nd5 {[%clk 0:02:45.3]} 12...
Nc5 {[%clk 0:02:12.1]} 13. Bc3 {[%clk 0:02:43.4]} 13... Nxb3+ {[%clk 0:02:08.9]}
14. cxb3 {[%clk 0:02:32.5]} 14... a5 {[%clk 0:02:05.3]} 15. Nd4 {[%clk
0:02:21.4]} 15... b4 {[%clk 0:02:02.3]} 16. Nxc6 {[%clk 0:02:10.2]} 16... Bxc6
{[%clk 0:02:00.5]} 17. Bd4 {[%clk 0:02:03.5]} 17... Bxd5 {[%clk 0:01:58.6]} 18.
exd5 {[%clk 0:02:03.4]} 18... Bf6 {[%clk 0:01:58.1]} 19. Rhe1 {[%clk 0:02:01.7]}
19... Bxd4 {[%clk 0:01:47.9]} 20. Rxd4 {[%clk 0:01:59.8]} 20... Qd7 {[%clk
0:01:46.9]} 21. Re4 {[%clk 0:01:59.1]} 21... Qf5 {[%clk 0:01:43.2]} 22. Qd4
{[%clk 0:01:55.5]} 22... Rac8 {[%clk 0:01:39.9]} 23. h3 {[%clk 0:01:50.3]} 23...
c6 {[%clk 0:01:35.4]} 24. dxc6 {[%clk 0:01:41.8]} 24... Rxc6+ {[%clk 0:01:29.5]}
25. Kb1 {[%clk 0:01:26.9]} 25... h5 {[%clk 0:01:09.6]} 26. g4 {[%clk 0:01:24.6]}
26... hxg4 {[%clk 0:01:06.3]} 27. hxg4 {[%clk 0:01:25.5]} 27... Qxg4 {[%clk
0:01:04.3]} 28. Rg1 {[%clk 0:01:24.6]} 28... Rfc8 {[%clk 0:00:50.2]} 29. a4
{[%clk 0:01:10.5]} 29... Qxg1+ {[%clk 0:00:19.7]} 30. Qxg1 {[%clk 0:01:07.1]}
30... d5 {[%clk 0:00:17.6]} 31. Re5 {[%clk 0:01:03.3]} 31... Rd6 {[%clk
0:00:14.4]} 32. Rg5 {[%clk 0:01:02.6]} 32... g6 {[%clk 0:00:14.3]} 33. f5 {[%clk
0:01:02.4]} 33... Kg7 {[%clk 0:00:14.1]} 34. Qd4+ {[%clk 0:01:01]} 34... Kg8
{[%clk 0:00:13.4]} 35. fxg6 {[%clk 0:00:59.2]} 35... fxg6 {[%clk 0:00:12.7]} 36.
Rxd5 {[%clk 0:00:58.4]} 36... Re6 {[%clk 0:00:11.4]} 37. Rd7 {[%clk 0:00:57.3]}
37... Re1+ {[%clk 0:00:10.1]} 38. Ka2 {[%clk 0:00:57.1]} 1-0

[Event "*** Titled Tuesday Blitz"]
[Site "Chess.com"]
[Date "2021.03.30"]
[Round "3"]
[White "Revnov"]
[Black "Mamedyarov_twitch"]
[Result "0-1"]
[WhiteElo "2669"]
[BlackElo "2945"]
[TimeControl "180+1"]
[EndTime "10:27:46 PDT"]
[Termination "Mamedyarov_twitch won by checkmate"]

1. e4 {[%clk 0:03:00.9]} 1... c5 {[%clk 0:02:58.6]} 2. Nf3 {[%clk 0:03:00.9]}
2... e6 {[%clk 0:02:58.4]} 3. d4 {[%clk 0:03:01.1]} 3... cxd4 {[%clk 0:02:59.2]}
4. Nxd4 {[%clk 0:03:01.6]} 4... Nf6 {[%clk 0:02:59.6]} 5. Bd3 {[%clk 0:02:59.7]}
5... d5 {[%clk 0:02:55.3]} 6. e5 {[%clk 0:02:54.4]} 6... Nfd7 {[%clk 0:02:49]}
7. f4 {[%clk 0:02:50]} 7... Nc6 {[%clk 0:02:49.1]} 8. c3 {[%clk 0:02:43.7]} 8...
Bc5 {[%clk 0:02:43]} 9. Nb3 {[%clk 0:02:03.7]} 9... Bb6 {[%clk 0:02:41.1]} 10.
Qe2 {[%clk 0:01:45.6]} 10... g5 {[%clk 0:02:31.6]} 11. N1d2 {[%clk 0:01:31.5]}
11... a5 {[%clk 0:02:14.5]} 12. Nf3 {[%clk 0:01:22.7]} 12... a4 {[%clk
0:02:13.3]} 13. Nbd4 {[%clk 0:01:23.1]} 13... g4 {[%clk 0:02:01.8]} 14. Ng1
{[%clk 0:00:54.8]} 14... Nxd4 {[%clk 0:01:48.8]} 15. cxd4 {[%clk 0:00:54.5]}
15... Bxd4 {[%clk 0:01:49.7]} 16. Be3 {[%clk 0:00:52.2]} 16... Qb6 {[%clk
0:01:35.8]} 17. Bxd4 {[%clk 0:00:52.2]} 17... Qxd4 {[%clk 0:01:36.7]} 18. g3
{[%clk 0:00:37.4]} 18... a3 {[%clk 0:01:33.2]} 19. O-O-O {[%clk 0:00:37.5]}
19... Ke7 {[%clk 0:01:24.2]} 20. Kb1 {[%clk 0:00:33]} 20... Nc5 {[%clk
0:01:18.9]} 21. Qc2 {[%clk 0:00:30.2]} 21... Bd7 {[%clk 0:01:09.8]} 22. Ne2
{[%clk 0:00:30]} 22... Qb4 {[%clk 0:00:56.1]} 23. Qc3 {[%clk 0:00:28.7]} 23...
Qxb2+ {[%clk 0:00:53.8]} 24. Qxb2 {[%clk 0:00:28.5]} 24... axb2 {[%clk
0:00:54.7]} 25. Nd4 {[%clk 0:00:26.6]} 25... Na4 {[%clk 0:00:44.8]} 26. Rd2
{[%clk 0:00:26.8]} 26... Rhc8 {[%clk 0:00:43.6]} 27. a3 {[%clk 0:00:22.6]} 27...
Rc3 {[%clk 0:00:41]} 28. Ka2 {[%clk 0:00:22.1]} 28... Nc5 {[%clk 0:00:37.9]} 29.
Bb1 {[%clk 0:00:20]} 29... Raxa3+ {[%clk 0:00:14.7]} 30. Kxb2 {[%clk 0:00:20.3]}
30... Na4# {[%clk 0:00:15.6]} 0-1

[Event "*** Titled Tuesday Blitz"]
[Site "Chess.com"]
[Date "2021.03.30"]
[Round "3"]
[White "maximnovik"]
[Black "superchess02"]
[Result "0-1"]
[WhiteElo "2558"]
[BlackElo "2814"]
[TimeControl "180+1"]
[EndTime "10:27:47 PDT"]
[Termination "superchess02 won by resignation"]

1. Nf3 {[%clk 0:02:57.8]} 1... Nf6 {[%clk 0:02:59.7]} 2. g3 {[%clk 0:02:57.5]}
2... e6 {[%clk 0:03:00.2]} 3. Bg2 {[%clk 0:02:57.8]} 3... c5 {[%clk 0:03:00.9]}
4. O-O {[%clk 0:02:57.9]} 4... Nc6 {[%clk 0:03:01.5]} 5. d3 {[%clk 0:02:58.4]}
5... d5 {[%clk 0:03:01.1]} 6. Nbd2 {[%clk 0:02:58.5]} 6... Be7 {[%clk
0:03:01.2]} 7. e4 {[%clk 0:02:58.8]} 7... O-O {[%clk 0:03:01.7]} 8. Re1 {[%clk
0:02:59.4]} 8... b5 {[%clk 0:03:01.1]} 9. e5 {[%clk 0:02:59.2]} 9... Nd7 {[%clk
0:03:00.9]} 10. Nf1 {[%clk 0:02:59.5]} 10... a5 {[%clk 0:03:00.8]} 11. h4 {[%clk
0:02:59.4]} 11... b4 {[%clk 0:02:57.7]} 12. Bf4 {[%clk 0:02:56.9]} 12... a4
{[%clk 0:02:53.5]} 13. N1h2 {[%clk 0:02:56.6]} 13... a3 {[%clk 0:02:48.6]} 14.
b3 {[%clk 0:02:55.7]} 14... f5 {[%clk 0:02:48.5]} 15. exf6 {[%clk 0:02:44.7]}
15... Bxf6 {[%clk 0:02:47.4]} 16. Rxe6 {[%clk 0:02:23.8]} 16... Bxa1 {[%clk
0:02:44.5]} 17. Qxa1 {[%clk 0:02:23.4]} 17... Bb7 {[%clk 0:02:44.2]} 18. Qe1
{[%clk 0:02:06.4]} 18... Re8 {[%clk 0:02:31.6]} 19. Bc7 {[%clk 0:01:42.2]} 19...
Qc8 {[%clk 0:02:17.8]} 20. Bh3 {[%clk 0:01:41.5]} 20... Nf6 {[%clk 0:01:39.1]}
21. Ng5 {[%clk 0:01:28.1]} 21... Nd4 {[%clk 0:01:33.5]} 22. Re7 {[%clk
0:01:15.5]} 22... Rxe7 {[%clk 0:00:53]} 23. Qxe7 {[%clk 0:01:11.6]} 23... Qe8
{[%clk 0:00:51.7]} 24. Qxc5 {[%clk 0:01:06.1]} 24... Ne2+ {[%clk 0:00:50.6]} 25.
Kf1 {[%clk 0:01:00]} 25... h6 {[%clk 0:00:50.4]} 26. Ne6 {[%clk 0:00:41.6]}
26... Bc8 {[%clk 0:00:44.7]} 27. Qe3 {[%clk 0:00:27.6]} 27... Nc3 {[%clk
0:00:39.8]} 28. f4 {[%clk 0:00:20.3]} 28... Nxa2 {[%clk 0:00:38.7]} 29. f5
{[%clk 0:00:18.9]} 29... Nc3 {[%clk 0:00:38.9]} 30. Be5 {[%clk 0:00:16.7]} 30...
Bxe6 {[%clk 0:00:37.3]} 31. fxe6 {[%clk 0:00:16]} 31... a2 {[%clk 0:00:37.7]}
32. Bxc3 {[%clk 0:00:15.4]} 32... bxc3 {[%clk 0:00:37.5]} 0-1

[Event "*** Titled Tuesday Blitz"]
[Site "Chess.com"]
[Date "2021.03.30"]
[Round "3"]
[White "SameerMujumdar"]
[Black "SoldierOfGod1"]
[Result "0-1"]
[WhiteElo "2290"]
[BlackElo "2518"]
[TimeControl "180+1"]
[EndTime "10:27:48 PDT"]
[Termination "SoldierOfGod1 won by resignation"]

1. e4 {[%clk 0:03:00.9]} 1... c6 {[%clk 0:03:00.3]} 2. c4 {[%clk 0:02:57]} 2...
d5 {[%clk 0:03:00]} 3. cxd5 {[%clk 0:02:57.9]} 3... cxd5 {[%clk 0:03:00.9]} 4.
exd5 {[%clk 0:02:58.5]} 4... Nf6 {[%clk 0:03:01.6]} 5. Nc3 {[%clk 0:02:58.4]}
5... Nxd5 {[%clk 0:03:00]} 6. Nf3 {[%clk 0:02:59]} 6... Nc6 {[%clk 0:02:59.5]}
7. d4 {[%clk 0:02:59.3]} 7... g6 {[%clk 0:02:59.7]} 8. Be2 {[%clk 0:02:59]} 8...
Bg7 {[%clk 0:02:59.8]} 9. h3 {[%clk 0:02:57.8]} 9... O-O {[%clk 0:03:00]} 10.
O-O {[%clk 0:02:56.5]} 10... h6 {[%clk 0:02:59.1]} 11. Be3 {[%clk 0:02:50.1]}
11... Be6 {[%clk 0:02:46.3]} 12. Qd2 {[%clk 0:02:43.3]} 12... Kh7 {[%clk
0:02:45.4]} 13. Rac1 {[%clk 0:02:39.3]} 13... a6 {[%clk 0:02:37.3]} 14. Ne4
{[%clk 0:02:29.3]} 14... Nxe3 {[%clk 0:02:28.9]} 15. fxe3 {[%clk 0:02:30.2]}
15... Bxa2 {[%clk 0:02:29.1]} 16. Nc5 {[%clk 0:02:20.1]} 16... Na5 {[%clk
0:01:20]} 17. b4 {[%clk 0:02:07.8]} 17... Nb3 {[%clk 0:01:19.3]} 18. Qxa2 {[%clk
0:02:07]} 18... Nxc1 {[%clk 0:01:19.1]} 19. Rxc1 {[%clk 0:02:07.9]} 19... Rb8
{[%clk 0:01:08.1]} 20. Bc4 {[%clk 0:01:59.8]} 20... e6 {[%clk 0:01:05.8]} 21.
Rf1 {[%clk 0:01:57.2]} 21... Qd6 {[%clk 0:01:05]} 22. Qb1 {[%clk 0:01:53.4]}
22... b5 {[%clk 0:00:55.4]} 23. Bd3 {[%clk 0:01:52.6]} 23... Rbc8 {[%clk
0:00:43.8]} 24. Qa2 {[%clk 0:01:29.3]} 24... Rc6 {[%clk 0:00:38]} 25. Be4 {[%clk
0:01:27.4]} 25... Rb6 {[%clk 0:00:35.4]} 26. Qf2 {[%clk 0:01:20.7]} 26... f5
{[%clk 0:00:33.3]} 27. Bb1 {[%clk 0:01:18.5]} 27... f4 {[%clk 0:00:31.8]} 28. e4
{[%clk 0:01:17.6]} 28... Rbb8 {[%clk 0:00:22.4]} 29. e5 {[%clk 0:01:17]} 29...
Qe7 {[%clk 0:00:17.5]} 30. Qc2 {[%clk 0:01:14.3]} 30... Rf5 {[%clk 0:00:12.8]}
31. Qa2 {[%clk 0:01:10.2]} 31... Rb6 {[%clk 0:00:12]} 32. Bxf5 {[%clk
0:01:09.3]} 32... gxf5 {[%clk 0:00:12.7]} 33. d5 {[%clk 0:01:07.8]} 33... exd5
{[%clk 0:00:12.1]} 34. Qxd5 {[%clk 0:01:08.7]} 34... a5 {[%clk 0:00:10.7]} 35.
e6 {[%clk 0:01:07.8]} 35... axb4 {[%clk 0:00:10]} 36. Qxf5+ {[%clk 0:01:07.9]}
36... Kh8 {[%clk 0:00:10.7]} 37. Ne5 {[%clk 0:01:04.3]} 37... Qxc5+ {[%clk
0:00:10.7]} 38. Kh1 {[%clk 0:01:03.4]} 38... Qxe5 {[%clk 0:00:10.8]} 0-1

[Event "*** Titled Tuesday Blitz"]
[Site "Chess.com"]
[Date "2021.03.30"]
[Round "3"]
[White "novocane"]
[Black "NiranjanNavalgund"]
[Result "0-1"]
[WhiteElo "2230"]
[BlackElo "2506"]
[TimeControl "180+1"]
[EndTime "10:27:48 PDT"]
[Termination "NiranjanNavalgund won on time"]

1. d4 {[%clk 0:02:59.6]} 1... Nf6 {[%clk 0:02:59.6]} 2. c4 {[%clk 0:02:59.9]}
2... Nc6 {[%clk 0:02:57]} 3. Nf3 {[%clk 0:02:59.6]} 3... e6 {[%clk 0:02:56.5]}
4. a3 {[%clk 0:02:59.8]} 4... d6 {[%clk 0:02:56.2]} 5. Nc3 {[%clk 0:03:00]} 5...
g6 {[%clk 0:02:57.1]} 6. e4 {[%clk 0:02:58.7]} 6... Bg7 {[%clk 0:02:58]} 7. Be2
{[%clk 0:02:58.6]} 7... O-O {[%clk 0:02:58.2]} 8. O-O {[%clk 0:02:57.1]} 8...
Re8 {[%clk 0:02:58.4]} 9. Be3 {[%clk 0:02:41.3]} 9... e5 {[%clk 0:02:57.7]} 10.
d5 {[%clk 0:02:40.9]} 10... Nd4 {[%clk 0:02:55.5]} 11. Nxd4 {[%clk 0:02:36.2]}
11... exd4 {[%clk 0:02:56.4]} 12. Bxd4 {[%clk 0:02:36.4]} 12... Nxe4 {[%clk
0:02:53.7]} 13. Bxg7 {[%clk 0:02:32.8]} 13... Kxg7 {[%clk 0:02:51.2]} 14. Qd4+
{[%clk 0:01:53.2]} 14... Qf6 {[%clk 0:02:50.3]} 15. Qxf6+ {[%clk 0:01:52]} 15...
Kxf6 {[%clk 0:02:48.4]} 16. Nxe4+ {[%clk 0:01:46]} 16... Rxe4 {[%clk 0:02:48.5]}
17. Bd3 {[%clk 0:01:46.4]} 17... Rd4 {[%clk 0:02:46.8]} 18. Rfd1 {[%clk
0:01:43]} 18... b6 {[%clk 0:02:45.5]} 19. f3 {[%clk 0:01:36.4]} 19... Bd7 {[%clk
0:02:40.3]} 20. Kf2 {[%clk 0:01:34.8]} 20... Re8 {[%clk 0:02:38.9]} 21. b3
{[%clk 0:01:25]} 21... a5 {[%clk 0:02:35.9]} 22. Rac1 {[%clk 0:01:20.6]} 22...
h5 {[%clk 0:02:28.4]} 23. Be2 {[%clk 0:01:07.3]} 23... Rxd1 {[%clk 0:02:25.5]}
24. Bxd1 {[%clk 0:01:07.3]} 24... g5 {[%clk 0:02:19.8]} 25. b4 {[%clk
0:01:06.9]} 25... axb4 {[%clk 0:02:19.7]} 26. axb4 {[%clk 0:01:07.7]} 26... Ra8
{[%clk 0:02:20.4]} 27. c5 {[%clk 0:01:07.2]} 27... bxc5 {[%clk 0:02:15.6]} 28.
bxc5 {[%clk 0:01:06.9]} 28... Ra2+ {[%clk 0:02:15]} 29. Ke3 {[%clk 0:00:18.5]}
29... Rxg2 {[%clk 0:02:11.4]} 30. cxd6 {[%clk 0:00:18.6]} 30... cxd6 {[%clk
0:02:10.7]} 31. Rc7 {[%clk 0:00:18.5]} 31... Bf5 {[%clk 0:02:09]} 32. Ba4 {[%clk
0:00:12]} 32... Rxh2 {[%clk 0:02:08.3]} 33. Be8 {[%clk 0:00:11.9]} 33... Bg6
{[%clk 0:02:05.1]} 34. Rd7 {[%clk 0:00:11.2]} 34... Ke5 {[%clk 0:02:01.9]} 35.
Ra7 {[%clk 0:00:03.5]} 35... Rb2 {[%clk 0:01:51.5]} 36. Bxf7 {[%clk 0:00:03.7]}
36... Rb3+ {[%clk 0:01:50]} 37. Kf2 {[%clk 0:00:04.1]} 37... Bf5 {[%clk
0:01:46.4]} 38. Bxh5 {[%clk 0:00:04.1]} 38... Kf4 {[%clk 0:01:45.9]} 39. Rf7
{[%clk 0:00:02.8]} 39... Rb2+ {[%clk 0:01:44.8]} 40. Ke1 {[%clk 0:00:03]} 40...
Ke3 {[%clk 0:01:41.6]} 41. Kf1 {[%clk 0:00:01.5]} 41... Bh3+ {[%clk 0:01:39.2]}
42. Kg1 {[%clk 0:00:01.8]} 42... Rg2+ {[%clk 0:01:38.8]} 43. Kh1 {[%clk
0:00:02.1]} 43... Kf2 {[%clk 0:01:37.5]} 44. Bg4 {[%clk 0:00:01.9]} 44... Rg1+
{[%clk 0:01:36.5]} 45. Kh2 {[%clk 0:00:02.4]} 45... Bg2 {[%clk 0:01:37.4]} 0-1

[Event "*** Titled Tuesday Blitz"]
[Site "Chess.com"]
[Date "2021.03.30"]
[Round "3"]
[White "anon219"]
[Black "MatyChess1"]
[Result "1-0"]
[WhiteElo "2858"]
[BlackElo "2615"]
[TimeControl "180+1"]
[EndTime "10:27:49 PDT"]
[Termination "anon219 won on time"]

1. e4 {[%clk 0:03:00.9]} 1... c5 {[%clk 0:03:00.3]} 2. Nf3 {[%clk 0:03:00.2]}
2... d6 {[%clk 0:03:01]} 3. Bb5+ {[%clk 0:02:58.8]} 3... Nd7 {[%clk 0:03:01.2]}
4. c3 {[%clk 0:02:58.4]} 4... Nf6 {[%clk 0:03:01]} 5. Bd3 {[%clk 0:02:58.1]}
5... g6 {[%clk 0:02:59.4]} 6. Bc2 {[%clk 0:02:53.2]} 6... Bg7 {[%clk 0:02:57.7]}
7. d4 {[%clk 0:02:53.1]} 7... O-O {[%clk 0:02:58.2]} 8. a4 {[%clk 0:02:52.6]}
8... e6 {[%clk 0:02:57.8]} 9. O-O {[%clk 0:02:41.2]} 9... b6 {[%clk 0:02:58.2]}
10. Na3 {[%clk 0:02:24.6]} 10... Bb7 {[%clk 0:02:58.4]} 11. Re1 {[%clk
0:02:24.1]} 11... cxd4 {[%clk 0:02:51.6]} 12. cxd4 {[%clk 0:02:22.4]} 12... a6
{[%clk 0:02:46.4]} 13. Bf4 {[%clk 0:02:18.6]} 13... Qc7 {[%clk 0:01:59.3]} 14.
Rc1 {[%clk 0:02:12.1]} 14... e5 {[%clk 0:01:58.2]} 15. Bg5 {[%clk 0:02:08.8]}
15... h6 {[%clk 0:01:52.6]} 16. Bb1 {[%clk 0:01:57.2]} 16... Qd8 {[%clk
0:01:48.7]} 17. Bh4 {[%clk 0:01:53.5]} 17... Rc8 {[%clk 0:01:46.6]} 18. Nc4
{[%clk 0:01:51.1]} 18... Qe7 {[%clk 0:01:43.8]} 19. dxe5 {[%clk 0:01:51.3]}
19... dxe5 {[%clk 0:01:44.7]} 20. Qd6 {[%clk 0:01:43.5]} 20... Qxd6 {[%clk
0:01:28.8]} 21. Nxd6 {[%clk 0:01:42.3]} 21... Rxc1 {[%clk 0:01:29.7]} 22. Rxc1
{[%clk 0:01:42.4]} 22... Ba8 {[%clk 0:01:29.1]} 23. b4 {[%clk 0:01:35.3]} 23...
a5 {[%clk 0:00:50.2]} 24. bxa5 {[%clk 0:01:28.5]} 24... bxa5 {[%clk 0:00:50.4]}
25. h3 {[%clk 0:01:26.5]} 25... Rb8 {[%clk 0:00:22.4]} 26. Bg3 {[%clk
0:01:09.2]} 26... Ne8 {[%clk 0:00:14.3]} 27. Nxe8 {[%clk 0:01:05.3]} 27... Rxe8
{[%clk 0:00:15.2]} 28. Rc7 {[%clk 0:01:02.1]} 28... Nb6 {[%clk 0:00:08.5]} 29.
Ba2 {[%clk 0:01:01.5]} 29... Rc8 {[%clk 0:00:08.3]} 30. Rxf7 {[%clk 0:00:57.8]}
30... Nc4 {[%clk 0:00:04.7]} 31. Ra7 {[%clk 0:00:54.4]} 31... Bxe4 {[%clk
0:00:03.7]} 32. Bxe5 {[%clk 0:00:50.4]} 32... Bxe5 {[%clk 0:00:01.9]} 33. Nxe5
{[%clk 0:00:50.1]} 33... Bd5 {[%clk 0:00:02.8]} 34. Nxg6 {[%clk 0:00:46.9]}
34... Bf7 {[%clk 0:00:01.8]} 35. Ne7+ {[%clk 0:00:46.4]} 1-0

[Event "*** Titled Tuesday Blitz"]
[Site "Chess.com"]
[Date "2021.03.30"]
[Round "3"]
[White "pavelalexandru07"]
[Black "Zipa5"]
[Result "1-0"]
[WhiteElo "2293"]
[BlackElo "1922"]
[TimeControl "180+1"]
[EndTime "10:27:51 PDT"]
[Termination "pavelalexandru07 won on time"]

1. d4 {[%clk 0:03:00.9]} 1... g6 {[%clk 0:02:57.9]} 2. c4 {[%clk 0:03:00.2]}
2... Bg7 {[%clk 0:02:56.9]} 3. e4 {[%clk 0:03:00.5]} 3... d6 {[%clk 0:02:53.6]}
4. Nc3 {[%clk 0:03:00]} 4... Nd7 {[%clk 0:02:52.5]} 5. Nf3 {[%clk 0:02:56.2]}
5... e5 {[%clk 0:02:50.8]} 6. Be3 {[%clk 0:02:51.7]} 6... Nh6 {[%clk 0:02:35.5]}
7. h3 {[%clk 0:02:48.8]} 7... f6 {[%clk 0:02:32.9]} 8. Be2 {[%clk 0:02:39.1]}
8... Nf7 {[%clk 0:02:31.4]} 9. Qd2 {[%clk 0:02:28.5]} 9... c6 {[%clk 0:02:28.5]}
10. O-O-O {[%clk 0:01:50.7]} 10... O-O {[%clk 0:02:25.2]} 11. dxe5 {[%clk
0:01:50]} 11... dxe5 {[%clk 0:02:20.7]} 12. g4 {[%clk 0:01:43.2]} 12... Qe7
{[%clk 0:02:14.2]} 13. Kb1 {[%clk 0:01:38.9]} 13... Nc5 {[%clk 0:02:01.7]} 14.
Qc2 {[%clk 0:01:21.6]} 14... a5 {[%clk 0:01:50.6]} 15. Rhg1 {[%clk 0:01:04.3]}
15... Be6 {[%clk 0:01:43.3]} 16. Nd5 {[%clk 0:00:44.2]} 16... cxd5 {[%clk
0:00:35.3]} 17. cxd5 {[%clk 0:00:41]} 17... Rfc8 {[%clk 0:00:33.6]} 18. dxe6
{[%clk 0:00:39.9]} 18... Nxe6 {[%clk 0:00:31.5]} 19. Qd3 {[%clk 0:00:24]} 19...
Qb4 {[%clk 0:00:21.8]} 20. a3 {[%clk 0:00:21.6]} 20... Qc4 {[%clk 0:00:17.7]}
21. Qxc4 {[%clk 0:00:21.3]} 21... Rxc4 {[%clk 0:00:17.1]} 22. Bxc4 {[%clk
0:00:22.2]} 22... Nf4 {[%clk 0:00:08.7]} 23. Bxf4 {[%clk 0:00:22.2]} 23... exf4
{[%clk 0:00:07.4]} 24. Rd7 {[%clk 0:00:22.8]} 24... Rf8 {[%clk 0:00:05.8]} 25.
Rgd1 {[%clk 0:00:23.4]} 1-0